Cogmind - Beta 16 @@@ ROGUE MODE // 2025.12.01 @ 15:35:49 Player: lepire Result: Destroyed by P-80 Master with Gamma Rifle Performance ------------- Evolutions (7) 3500 Regions Visited (18) 3600 Robots Destroyed (217) 1085 Value Destroyed (8408) 8408 Prototype IDs (32) 640 Alien Tech Used (0) 0 Bonus (849) 849 TOTAL SCORE: 18082 Bonus ------- High Alert Combat Kills 407 Follower Combat Kills 142 Met Data Miner 300 Cogmind --------- Core Integrity 0/1300 Matter 21/300 Energy 100/100 System Corruption 3% Temperature Cool (0) Movement Core (50) Location -3/Research Parts ------- > --- POWER (2) -------- (None) > --- PROPULSION (4) --- (None) > --- UTILITY (12) ----- Enhanced Optical Array Improved Core Shielding > --- WEAPON (3) ------- (None) > --- INVENTORY (5) ---- Advanced Energy Well (500) Graphene Brace Advanced Focal Shield Hardcell Cannon Compact Mass Driver Peak State ------------ > --- POWER ------------ Micro Fission Core Light Antimatter Reactor > --- PROPULSION ------- Advanced VSS Leg Advanced VSS Leg Centrium Leg Centrium Leg > --- UTILITY ---------- Huge Storage Unit Enhanced Optical Array Long-range Terrain Scanner Advanced Terrain Scan Processor Advanced Targeting Computer Improved Target Analyzer Improved Target Analyzer Layered Light Armor Plating Graphene Brace Improved Force Field > --- WEAPON ----------- Coil Gun Improved Heavy Machine Gun Heavy Gauss Cannon > --- INVENTORY -------- Light Ion Engine Armored Medium Treads Myomer Leg Advanced VSS Leg Advanced VSS Leg Advanced Power Amplifier Advanced Energy Well Medium Matter Pod Advanced Terrain Scanner Advanced Targeting Computer Advanced Targeting Computer Matter Filter Matter Filter Kinecellerator Improved Weapon Cycler Phase Shifter Improved Cloaking Device Graphene Brace Focal Shield [Rating: 120] Favorites ----------- Power Light Nuclear Core Engine Cooled Deuterium Engine Power Core Light Nuclear Core Reactor Light Antimatter Reactor Propulsion Compact Wheel Treads Light Treads Leg Improved Carbon-fiber Leg Wheel Compact Wheel Hover Unit Gravmag Array Utility Graphene Brace Device Graphene Brace Storage High-capacity Storage Unit Processor Core Analyzer Protection Medium Armor Plating Weapon Enhanced Autogun Energy Gun EM Shotgun Energy Cannon Neutron Cannon Ballistic Gun Enhanced Autogun Ballistic Cannon Antimatter Cannon Launcher Proton Missile Launcher Special Weapon Mining Laser Build | -11 -10 -9 -8 -7 -7 -7 -7 -6 -6 -6 -6 -5 -4 -4 -4 -4 -4 -3 ------- Run | Yrd Mat Mat Mat Fac Low Low Dat Pro Fac Low Low Fac Fac Was Fac Upp Upp Res Slots Evolved 14 | . . 2 2 2 . . . . 2 . . 2 2 . . . . 2 Power 1 | . . . . . . . . . . . . . 1 . . . . . Propulsion 2 | . . 1 . . . . . . . . . 1 . . . . . . Utility 10 | . . 1 1 2 . . . . 2 . . 1 1 . . . . 2 Weapon 1 | . . . 1 . . . . . . . . . . . . . . . Parts Attached 193 | 2 7 16 15 38 10 6 . 4 23 6 3 18 28 5 5 . . 7 Power 26 | . . 3 3 3 1 1 . 1 5 2 . 1 3 3 . . . . Engine 7 | . . 2 1 2 . . . . 1 . . . 1 . . . . . Core 14 | . . 1 2 1 1 1 . 1 4 2 . 1 . . . . . . Reactor 5 | . . . . . . . . . . . . . 2 3 . . . . Propulsion 47 | 2 . 5 4 5 4 . . 2 6 1 2 3 10 . 1 . . 2 Treads 14 | 1 . 4 2 3 2 . . . . . . 2 . . . . . . Leg 13 | . . . . . 1 . . 2 2 . . . 7 . . . . 1 Wheel 15 | 1 . 1 2 2 . . . . 3 . 2 1 3 . . . . . Hover 5 | . . . . . 1 . . . 1 1 . . . . 1 . . 1 Flight . | . . . . . . . . . . . . . . . . . . . Utility 71 | . 4 1 4 13 2 4 . 1 8 3 . 9 13 2 3 . . 4 Device 29 | . . . . 4 2 . . 1 5 2 . 4 5 1 2 . . 3 Storage 6 | . 2 . 1 . . 1 . . . . . . 2 . . . . . Processor 18 | . . 1 1 3 . 1 . . 1 1 . 4 4 1 1 . . . Hackware . | . . . . . . . . . . . . . . . . . . . Protection 18 | . 2 . 2 6 . 2 . . 2 . . 1 2 . . . . 1 Artifact . | . . . . . . . . . . . . . . . . . . . Weapon 49 | . 3 7 4 17 3 1 . . 4 . 1 5 2 . 1 . . 1 Energy Gun 3 | . . 2 . 1 . . . . . . . . . . . . . . Energy Cannon 4 | . . . . 2 1 1 . . . . . . . . . . . . Ballistic Gun 22 | . 2 3 4 3 2 . . . 1 . 1 5 1 . . . . . Ballistic Cannon 13 | . . . . 7 . . . . 3 . . . 1 . 1 . . 1 Launcher 6 | . . 2 . 4 . . . . . . . . . . . . . . Special Weapon 1 | . 1 . . . . . . . . . . . . . . . . . Impact Weapon . | . . . . . . . . . . . . . . . . . . . Slashing Weapon . | . . . . . . . . . . . . . . . . . . . Piercing Weapon . | . . . . . . . . . . . . . . . . . . . Special Melee Weapon . | . . . . . . . . . . . . . . . . . . . Unidentified Prototypes 16 | . . 1 1 8 . . . . 2 . . 2 1 . . . . 1 Parts Lost 74 | . . 2 2 10 . . . 1 13 10 . 5 22 4 1 . . 4 Power 9 | . . 1 . 1 . . . 1 1 2 . . 2 1 . . . . Propulsion 27 | . . 1 . 3 . . . . 5 2 . 3 9 1 1 . . 2 Utility 27 | . . . 2 4 . . . . 5 4 . 1 7 2 . . . 2 Weapon 11 | . . . . 2 . . . . 2 2 . 1 4 . . . . . Highest Loss Streak 9 | . . 1 1 3 . . . 1 8 3 . 2 9 4 1 . . 2 To Critical Strikes . | . . . . . . . . . . . . . . . . . . . Average Backups 11 | 6 8 18 19 19 3 4 6 7 7 7 3 4 16 4 3 4 4 3 Power . | 1 1 . . 1 . 1 2 1 1 1 1 . . . . . . . Propulsion 1 | 4 2 1 1 1 . . . 1 . . . . 3 . 1 1 1 . Utility 7 | . 2 8 11 12 2 2 3 2 4 5 2 3 11 2 1 1 1 2 Weapon 2 | 1 2 6 5 4 . . 1 1 . . . . . . 1 2 2 1 Tool/Special . | . . . . . . . . . . . . . . . . . . . Unused Backups 68 | . 6 4 7 19 . . . . 5 5 . 3 12 1 2 . . 4 Power 3 | . . 1 . . . . . . 1 . . . 1 . . . . . Propulsion 5 | . 1 . 1 1 . . . . . . . . 1 . . . . 1 Utility 46 | . 1 2 5 16 . . . . 4 5 . 2 9 . 1 . . 1 Weapon 14 | . 4 1 1 2 . . . . . . . 1 1 1 1 . . 2 Tool/Special . | . . . . . . . . . . . . . . . . . . . Average Slot Usage (%) 82 | . 98 98 99 91 47 97 100 98 85 52 33 84 90 32 9 10 10 16 Engine 2 | . 14 5 3 5 . . . . . . . . . . . . . . Core 4 | . . 5 5 1 6 7 7 6 4 4 . 5 4 . . . . . Treads 7 | . 14 21 13 6 11 15 15 7 3 . . 5 . . . . . . Leg 3 | . . . . . 6 7 7 15 9 . . . 12 3 . . . . Wheel 5 | . 14 11 13 7 . . . . 2 . 2 4 4 . . . . . Device 10 | . . . . 5 8 15 15 14 30 14 6 16 12 6 6 5 5 7 Storage 5 | . 14 11 9 7 . 6 7 7 6 3 . . 4 . . . . . Processor 15 | . . 11 17 20 . 6 7 7 6 18 20 34 27 19 . 5 5 4 Protection 6 | . 12 10 8 11 . 13 15 15 3 . . . 4 . . . . . Energy Cannon 1 | . . . . . 6 9 15 15 1 . . . . . . . . . Ballistic Gun 11 | . 27 15 26 8 2 12 7 7 3 3 4 15 11 . . . . . Ballistic Cannon 3 | . . . . 13 . . . . 9 2 . . 1 . . . . 2 Peak Build Rating 120 | 6 12 19 33 52 43 55 54 57 70 69 27 76 120 62 34 16 15 36 Average Rating 47 | 6 8 17 29 45 29 53 54 54 59 40 24 68 99 36 18 15 15 25 On Entrance 29 | 6 6 12 17 31 2 43 54 54 57 69 20 27 71 34 4 16 15 15 Avg Prop Armor Cover (%) 7 | . 6 12 9 6 6 3 3 3 9 . . 10 6 . . . . . Naked Turns 91 | . . . . 5 4 . . . . . . . . 48 34 . . . Heaviest Build 137 | 11 56 59 65 82 26 45 45 45 55 39 7 30 137 17 14 2 2 13 Greatest Support 96 | 20 20 40 32 32 40 40 40 54 54 20 20 56 96 25 12 3 3 28 Greatest Overweight (x) 13 | . 3 3 4 4 . 1 1 1 2 1 2 2 13 4 3 . . 4 Average Overweight (x) 1 | . 2 2 2 1 . . 1 . . . . . 3 . . . . 1 Largest Inventory Capacity 25 | 8 20 20 25 20 5 10 10 10 10 10 5 5 25 5 5 5 5 5 Average Capacity 14 | 8 15 20 20 19 5 9 10 10 10 8 5 5 22 5 5 5 5 5 Most Carried 25 | 6 15 20 20 20 5 6 6 10 10 10 4 5 25 5 5 5 5 5 Average Carried 11 | 5 8 18 19 19 2 5 6 7 7 7 3 4 16 4 4 4 5 3 Final Capacity 20 | 8 20 20 20 5 5 10 10 10 10 5 5 5 5 5 5 5 5 5 Final Carried 19 | 4 15 19 19 5 4 6 6 10 10 3 3 5 5 5 5 5 5 5 Class Distribution -------------------- 26% | Mutant 23% | Gunner 11% | Scavenger-Tank 11% | Scavenger-Mutant 9% | Tank 8% | Scavenger-Gunner 4% | Skirmisher 3% | Derelict-Tank Dominant Class ---------------- Mutant | -10/Materials Mutant | -9/Materials Scavenger-Gunner | -8/Materials Tank | -7/Factory Scavenger-Mutant | -7/Lower Caves Scavenger-Tank | -7/Lower Caves Scavenger-Tank | -7/Data Miner Scavenger-Tank | -6/Proximity Caves Scavenger-Mutant | -6/Factory Mutant | -6/Lower Caves Mutant | -6/Lower Caves Gunner | -5/Factory Gunner | -4/Factory Mutant | -4/Waste Mutant | -4/Factory Mutant | -4/Upper Caves Mutant | -4/Upper Caves Mutant | -3/Research Resources | -11 -10 -9 -8 -7 -7 -7 -7 -6 -6 -6 -6 -5 -4 -4 -4 -4 -4 -3 ----------- Run | Yrd Mat Mat Mat Fac Low Low Dat Pro Fac Low Low Fac Fac Was Fac Upp Upp Res Matter Collected 8399 | 177 239 758 1420 1906 218 300 . 98 975 363 25 813 1049 . . 55 . 3 Remotely . | . . . . . . . . . . . . . . . . . . . Salvage Created 9404 | . 239 1397 1495 2710 55 356 . 106 956 84 24 721 1261 . . . . . Parts 461 | . 13 88 62 128 3 15 . 6 41 5 3 37 60 . . . . . Haulers Intercepted 12 | . 1 3 1 5 . . . . 1 . . 1 . . . . . . Recyclers Shooed 11 | . 3 1 1 1 . . . . 4 . . 1 . . . . . . Parts Field Recycled . | . . . . . . . . . . . . . . . . . . . Retrieved Matter . | . . . . . . . . . . . . . . . . . . . Parts Self-Destructed 25 | . . . . . . 15 . 5 . 5 . . . . . . . . Prevented 5 | . . . . . . 3 . 2 . . . . . . . . . . Parts Restored . | . . . . . . . . . . . . . . . . . . . Kills | -11 -10 -9 -8 -7 -7 -7 -7 -6 -6 -6 -6 -5 -4 -4 -4 -4 -4 -3 ------- Run | Yrd Mat Mat Mat Fac Low Low Dat Pro Fac Low Low Fac Fac Was Fac Upp Upp Res Combat Hostiles Destroyed 156 | . . 22 25 50 1 6 . 4 18 3 . 7 20 . . . . . Melee 1 | . . . . . . . . . . 1 . . . . . . . . Guns 92 | . . 17 25 15 . 3 . 2 5 2 . 7 16 . . . . . Cannons 51 | . . . . 28 1 3 . 2 13 . . . 4 . . . . . AOE 9 | . . 4 . 5 . . . . . . . . . . . . . . Classes Destroyed 19 | . 4 6 . 8 1 . . . . . . . . . . . . . Worker 8 | . . . . 4 . . . . 3 . . . 1 . . . . . Builder 8 | . . 3 . 1 . . . . 2 . . 1 1 . . . . . Tunneler 2 | . . . . 1 . . . . . . . . 1 . . . . . Hauler 12 | . 1 3 1 5 . . . . 1 . . 1 . . . . . . Recycler 16 | . 2 2 . 6 . . . . 3 . . 2 1 . . . . . Mechanic 2 | . 1 . . 1 . . . . . . . . . . . . . . Operator 3 | . . 1 1 . . . . . . . . . 1 . . . . . Watcher 9 | . 1 2 4 1 . . . . . . . . 1 . . . . . Swarmer 26 | . . . . 10 . . . 4 4 1 . 3 4 . . . . . Grunt 68 | . . 13 18 17 . 7 . . 7 . . . 6 . . . . . Brawler 2 | . . 1 1 . . . . . . . . . . . . . . . Duelist 1 | . . 1 . . . . . . . . . . . . . . . . Protector 1 | . . . . 1 . . . . . . . . . . . . . . Sentry 25 | . . 7 6 8 . . . . 1 . . 1 2 . . . . . Specialist 2 | . . . . 2 . . . . . . . . . . . . . . Hunter 9 | . . . . 1 . . . . 2 1 . 1 4 . . . . . Programmer 21 | . . . . 10 . . . . 4 1 . 2 4 . . . . . Heavy 1 | . . . . 1 . . . . . . . . . . . . . . Decomposer 1 | . . . . . . . . . . . 1 . . . . . . . Mutant 1 | . . . . . 1 . . . . . . . . . . . . . Best Kill Streak 12 | . 2 8 3 12 1 3 . 2 7 1 . 4 4 . . . . . Combat Bots Only 8 | . . 4 3 8 1 3 . 2 4 1 . 3 4 . . . . . Max Kills in Single Turn 6 | . 1 3 1 6 1 1 . 1 3 1 1 1 2 . . . . . Gunslinging 1 | . . . . . . . . . . . . . 1 . . . . . Exploded 5 | . . 2 . 5 . . . . . . . . . . . . . . Melee 1 | . . . . . . . . . . 1 . . . . . . . . Uniques/NPCs Destroyed . | . . . . . . . . . . . . . . . . . . . Combat | -11 -10 -9 -8 -7 -7 -7 -7 -6 -6 -6 -6 -5 -4 -4 -4 -4 -4 -3 -------- Run | Yrd Mat Mat Mat Fac Low Low Dat Pro Fac Low Low Fac Fac Was Fac Upp Upp Res Hostile Shots Fired 1744 | . 3 63 94 420 10 72 . 96 165 184 . 71 413 4 9 2 . 138 Missed 585 | . . 18 28 141 3 18 . 33 50 87 . 23 128 . 3 1 . 52 Hits 1159 | . 3 45 66 279 7 54 . 63 115 97 . 48 285 4 6 1 . 86 Melee 8 | . . . . . . . . . . . . . 4 4 . . . . Projectile 1151 | . 3 45 66 279 7 54 . 63 115 97 . 48 281 . 6 1 . 86 AOE 7 | . . 1 . 1 . . . . . 1 . 2 2 . . . . . Critical Strikes 28 | . . 1 2 4 . 1 . . 4 1 . 1 10 . . . . 4 Actively Blocked 21 | . . . . . . 1 . . 4 1 . 1 10 . . . . 4 Damage Taken 17685 | . 41 658 1030 3709 135 461 . 600 1570 1543 . 1081 4507 150 264 23 . 1913 Core 4284 | . 10 30 100 467 23 69 . 24 111 717 . 274 783 150 190 23 . 1313 Absorbed by Shields 1032 | . . . . 52 . . . . 95 . . . 885 . . . . . Redirected to Shielding 164 | . . . . 102 . . . . . . . . . . . . . 62 Ignored by Resistances 528 | . . . . . . 67 . 112 240 12 . 10 87 . . . . . Regen/Repaired (Parts) 173 | . 23 92 50 . . . . . 8 . . . . . . . . . Core Remaining (%) 57 | 100 96 92 81 . . . . 16 . . 2 72 . . . . . . Volleys Fired 551 | . 23 70 95 141 6 22 . 11 71 11 3 32 64 . . . . 2 Largest 3 | . 2 2 3 3 1 3 . 2 3 2 1 3 3 . . . . 1 Hottest 189 | . 100 100 100 120 90 189 . 99 91 61 33 99 96 . . . . 54 Shots Fired 1300 | . 45 135 270 374 6 41 . 15 126 20 3 92 171 . . . . 2 Gun 946 | . 44 130 266 179 . 35 . 11 38 8 3 92 140 . . . . . Cannon 336 | . . . . 187 6 6 . 4 88 12 . . 31 . . . . 2 Launcher 12 | . . 4 . 8 . . . . . . . . . . . . . . Special 6 | . 1 1 4 . . . . . . . . . . . . . . . Kinetic 1221 | . 44 86 266 365 . 35 . 11 126 20 3 92 171 . . . . 2 Thermal 15 | . 1 1 4 1 6 2 . . . . . . . . . . . . Explosive 4 | . . 4 . . . . . . . . . . . . . . . . Electromagnetic 60 | . . 44 . 8 . 4 . 4 . . . . . . . . . . Robot Hit Streak 38 | . 5 18 38 23 9 12 . 2 9 11 3 15 14 . . . . 1 Robot Miss Streak 8 | . 6 7 5 5 . 5 . 3 6 8 1 2 5 . . . . 1 Penetration Max 2 | . . . . . . . . . . . . 1 2 . . . . . Secondary Targets 8 | . . 2 3 1 . . . . . . . . 2 . . . . . Max Gunslinging Chain 1 | . . 1 1 1 . . . . . . . . 1 . . . . . Shots Hit Robots 846 | . 25 94 184 242 5 26 . 6 75 13 2 63 110 . . . . 1 Core Hits 388 | . 10 52 64 114 2 10 . 4 41 14 2 23 52 . . . . . Critical Kills 8 | . . . . . . . . . . . . 3 5 . . . . . Critical Parts Destroyed 11 | . . . . 1 . . . . . . . 5 5 . . . . . Critical Strikes 42 | . . . . 13 . . . . 3 1 . 8 17 . . . . . Destroy 19 | . . . . 1 . . . . . . . 8 10 . . . . . Blast 23 | . . . . 12 . . . . 3 1 . . 7 . . . . . Melee Attacks . | . . . . . . . . . . . . . . . . . . . Impact . | . . . . . . . . . . . . . . . . . . . Slashing . | . . . . . . . . . . . . . . . . . . . Piercing . | . . . . . . . . . . . . . . . . . . . Sneak Attacks . | . . . . . . . . . . . . . . . . . . . Combat Hostiles . | . . . . . . . . . . . . . . . . . . . Follow-up Attacks . | . . . . . . . . . . . . . . . . . . . Damage Inflicted 21393 | . 262 2001 3256 7397 186 753 . 146 2796 354 13 1130 3029 . 7 . . 63 Guns 11970 | . 258 1412 3256 2234 . 575 . 70 583 101 13 1130 2338 . . . . . Cannons 6850 | . . . . 3544 186 178 . 76 1955 206 . . 659 . . . . 46 Explosions 2498 | . . 589 . 1619 . . . . 258 . . . 32 . . . . . Melee . | . . . . . . . . . . . . . . . . . . . Ramming 75 | . 4 . . . . . . . . 47 . . . . 7 . . 17 Kinetic 17836 | . 258 868 3256 5778 . 575 . 70 2538 307 13 1130 2997 . . . . 46 Thermal 1228 | . . 313 . 654 186 75 . . . . . . . . . . . . Explosive 770 | . . 276 . 204 . . . . 258 . . . 32 . . . . . Electromagnetic 1484 | . . 544 . 761 . 103 . 76 . . . . . . . . . . Impact . | . . . . . . . . . . . . . . . . . . . Slashing . | . . . . . . . . . . . . . . . . . . . Piercing . | . . . . . . . . . . . . . . . . . . . Highest Corruption 10 | . . 2 . 2 2 2 2 2 1 1 1 1 10 10 10 10 10 3 Average Corruption 2 | . . 2 . 1 2 2 2 2 1 1 1 1 4 10 10 10 10 1 Corruption Purged . | . . . . . . . . . . . . . . . . . . . Corruption Blocked . | . . . . . . . . . . . . . . . . . . . Effects 125 | . . 2 . 15 6 11 5 7 14 7 1 7 28 9 6 4 1 2 Message Errors 27 | . . 1 . 5 1 3 3 1 2 . . 2 6 1 . 2 . . Matter Fused 31 | . . . . 2 2 1 1 1 3 2 1 2 9 3 2 1 1 . Heat Flow Errors 16 | . . . . 1 1 1 . 1 4 1 . 2 4 1 . . . . Energy Discharges 14 | . . . . 2 . 1 . 1 2 2 . . 2 1 1 1 . 1 Parts Rejected 6 | . . . . 1 . 1 . 1 1 . . . 1 . . . . 1 Parts Fused 2 | . . . . 1 . . . 1 . . . . . . . . . . Data Loss (minor) 9 | . . . . 1 . . 1 1 . . . . 2 1 3 . . . Data Loss (major) 7 | . . 1 . 1 1 3 . . . . . 1 . . . . . . Misfires 3 | . . . . . . . . . . 1 . . 2 . . . . . Alerts 5 | . . . . . 1 1 . . 1 1 . . 1 . . . . . Misdirections 2 | . . . . . . . . . . . . . . 2 . . . . Weapon Failures 3 | . . . . 1 . . . . 1 . . . 1 . . . . . Overload Shots . | . . . . . . . . . . . . . . . . . . . Overflow Damage 234 | . . 16 . 115 15 30 . . 52 . . . . . . . . 6 Projectiles 179 | . . . . 76 15 30 . . 52 . . . . . . . . 6 Explosions 55 | . . 16 . 39 . . . . . . . . . . . . . . Melee . | . . . . . . . . . . . . . . . . . . . Knockbacks 60 | . . . . 29 . . . . 19 2 . . 10 . . . . . Impact . | . . . . . . . . . . . . . . . . . . . Kinetic 56 | . . . . 27 . . . . 17 2 . . 10 . . . . . Secondary 4 | . . . . 2 . . . . 2 . . . . . . . . . Self-Inflicted Damage 188 | . 2 6 . 151 . . . . . 20 . . . . 3 . . 6 Shots 4 | . . 1 . 3 . . . . . . . . . . . . . . Rammed 20 | . 1 . . . . . . . . 13 . . . . 1 . . 5 Targets Rammed 21 | . 1 . . . . . . . . 13 . . . . 1 . . 6 Kicked 1 | . . . . . . . . . . . . . . . . . . 1 Crushed . | . . . . . . . . . . . . . . . . . . . Highest Temperature 342 | . 32 198 342 341 191 270 . 198 296 159 . 131 283 176 . . . . Average Temperature 71 | . 6 46 90 76 74 111 . 66 51 22 . 18 84 92 . . . . Received Heat Transfer 2954 | . . 240 504 764 . 225 . . 411 210 . 30 435 . 18 . . 117 Effects 7 | . . . 4 1 . 1 . . . . . . 1 . . . . . Energy Bleed 4 | . . . 1 1 . 1 . . . . . . 1 . . . . . Interference 3 | . . . 3 . . . . . . . . . . . . . . . Siege Activations . | . . . . . . . . . . . . . . . . . . . Martial Activations . | . . . . . . . . . . . . . . . . . . . Shielding Activations . | . . . . . . . . . . . . . . . . . . . Robots Disrupted . | . . . . . . . . . . . . . . . . . . . Combat Hostiles . | . . . . . . . . . . . . . . . . . . . Robots Corrupted 3 | . . 1 . 2 . . . . . . . . . . . . . . Combat Hostiles 3 | . . 1 . 2 . . . . . . . . . . . . . . Parts Fried 9 | . . 1 . 7 . 1 . . . . . . . . . . . . Impact Corruptions . | . . . . . . . . . . . . . . . . . . . Robots Melted . | . . . . . . . . . . . . . . . . . . . Combat Hostiles . | . . . . . . . . . . . . . . . . . . . Parts Melted 1 | . . . . 1 . . . . . . . . . . . . . . Heat Transferred 927 | . . 400 . 527 . . . . . . . . . . . . . . Parts Sabotaged . | . . . . . . . . . . . . . . . . . . . Parts Stolen . | . . . . . . . . . . . . . . . . . . . Parts Stripped . | . . . . . . . . . . . . . . . . . . . Power Chain Reactions 7 | . . 4 . 3 . . . . . . . . . . . . . . Alert | -11 -10 -9 -8 -7 -7 -7 -7 -6 -6 -6 -6 -5 -4 -4 -4 -4 -4 -3 ------- Run | Yrd Mat Mat Mat Fac Low Low Dat Pro Fac Low Low Fac Fac Was Fac Upp Upp Res Maximum Alert Level 3 | . . 1 1 3 . . . . 1 . . . 2 . . . . . Low Security (%) 74 | 100 100 90 83 36 . . . . 85 . . 100 55 100 100 . . 100 Level 1 11 | . . 9 16 20 . . . . 14 . . . 10 . . . . . Level 2 11 | . . . . 29 . . . . . . . . 34 . . . . . Level 3 2 | . . . . 13 . . . . . . . . . . . . . . Level 4 . | . . . . . . . . . . . . . . . . . . . Level 5 . | . . . . . . . . . . . . . . . . . . . High Security . | . . . . . . . . . . . . . . . . . . . Max Security . | . . . . . . . . . . . . . . . . . . . Peak Influence 926 | . 17 248 239 926 . . . . 242 . . 82 559 136 15 . . 178 Initial 136 | . . . 45 92 . . . . . . . 52 14 136 4 . . 14 Average 155 | . 1 97 134 344 . . . . 103 . . 18 216 82 . . . 11 Influence Increases 6208 | . 49 701 771 1565 . 246 . 135 675 470 . 271 978 . 15 90 . 242 Destroy 0b10 Robot/C 3160 | . . 440 500 980 . 200 . 80 360 60 . 140 400 . . . . . Destroy 0b10 Robot/NC 305 | . 25 55 30 100 . . . . 45 . . 20 30 . . . . . Destroy Leader 832 | . 4 150 140 252 . 30 . 10 102 20 . 32 92 . . . . . Allied During Kill 16 | . . . . . . 16 . . . . . . . . . . . . Successful Hack 73 | . 19 4 16 6 . . . . 9 . . 5 14 . . . . . Select Force Hacks 30 | . . . . . . . . . 30 . . . . . . . . . Disable Machine 375 | . . 15 30 90 . . . . 60 . . 45 135 . . . . . Anti-Garrison Action 150 | . . . . . . . . . . . . . 150 . . . . . Destroy Structure 322 | . 1 37 10 62 . . . . 54 . . 14 142 . . . . 2 Partial Spotted 45 | . . . . 30 . . . . . . . . . . 15 . . . Lose Combat Pursuer 900 | . . . 45 45 . . . 45 15 390 . 15 15 . . 90 . 240 Influence Decreases 6030 | . 48 593 676 855 601 555 4 135 445 522 94 325 617 385 16 55 18 86 Entered New Map 1025 | . . 1 64 112 339 61 4 . . 86 34 32 16 255 2 3 8 8 Time Decay 4207 | . 48 422 592 648 262 434 . 125 392 346 60 253 411 90 14 52 10 48 Lost Part 578 | . . 20 20 95 . . . 10 53 90 . 40 190 40 . . . 20 Lost Ally 70 | . . . . . . 60 . . . . . . . . . . . 10 Purge Threat 150 | . . 150 . . . . . . . . . . . . . . . . Squads Dispatched 49 | . . 3 4 16 . . . . 10 . . 5 10 . . . . 1 Investigation 11 | . . 1 3 3 . . . . 3 . . . 1 . . . . . Extermination 15 | . . . . 5 . . . . 4 . . 2 3 . . . . 1 Reinforcement 16 | . . 2 1 5 . . . . 3 . . 3 2 . . . . . Assault 3 | . . . . . . . . . . . . . 3 . . . . . Garrison 4 | . . . . 3 . . . . . . . . 1 . . . . . Intercept . | . . . . . . . . . . . . . . . . . . . Searches Triggered . | . . . . . . . . . . . . . . . . . . . Data Miner Redirects 4 | . . . . . . . . . 1 . . . 3 . . . . . Construction Impeded 5 | . . . . 2 . . . . 1 . . . 2 . . . . . Haulers Reinforced . | . . . . . . . . . . . . . . . . . . . Active Scanning Responses . | . . . . . . . . . . . . . . . . . . . Cargo Convoy Interrupts 1 | . . . . 1 . . . . . . . . . . . . . . Stealth | -11 -10 -9 -8 -7 -7 -7 -7 -6 -6 -6 -6 -5 -4 -4 -4 -4 -4 -3 --------- Run | Yrd Mat Mat Mat Fac Low Low Dat Pro Fac Low Low Fac Fac Was Fac Upp Upp Res Distress Signals 9 | . . 4 1 2 . . . . 1 . . . 1 . . . . . Communications Jammed . | . . . . . . . . . . . . . . . . . . . Distress Signals . | . . . . . . . . . . . . . . . . . . . Times Spotted 308 | . 7 31 38 69 1 12 . 8 23 30 . 12 41 5 2 4 . 25 Peak Tracking Total 16 | . 3 4 5 11 1 4 . 4 4 10 . 3 12 5 1 6 . 16 Tactical Retreats 26 | . . . 2 1 . . . 2 1 13 . 1 1 . . 1 . 4 Traps | -11 -10 -9 -8 -7 -7 -7 -7 -6 -6 -6 -6 -5 -4 -4 -4 -4 -4 -3 ------- Run | Yrd Mat Mat Mat Fac Low Low Dat Pro Fac Low Low Fac Fac Was Fac Upp Upp Res Traps Triggered 10 | . . . 1 5 . . . . . . . . 2 . 1 . . 1 Indirectly 2 | . . . . 2 . . . . . . . . . . . . . . Trap Hack Attempts . | . . . . . . . . . . . . . . . . . . . Triggered . | . . . . . . . . . . . . . . . . . . . Disarmed . | . . . . . . . . . . . . . . . . . . . Reprogrammed . | . . . . . . . . . . . . . . . . . . . Reused . | . . . . . . . . . . . . . . . . . . . Traps Extracted . | . . . . . . . . . . . . . . . . . . . Installed . | . . . . . . . . . . . . . . . . . . . Triggered . | . . . . . . . . . . . . . . . . . . . Machines | -11 -10 -9 -8 -7 -7 -7 -7 -6 -6 -6 -6 -5 -4 -4 -4 -4 -4 -3 ---------- Run | Yrd Mat Mat Mat Fac Low Low Dat Pro Fac Low Low Fac Fac Was Fac Upp Upp Res Machines Disabled 28 | . . 1 2 6 1 . . . 4 1 . 3 10 . . . . . Max in Single Turn 5 | . . 1 1 4 1 . . . 1 1 . 1 5 . . . . . Garrison Access 2 | . . . . . . . . . . . . 1 1 . . . . . Machines Repaired . | . . . . . . . . . . . . . . . . . . . Machines Dismantled . | . . . . . . . . . . . . . . . . . . . Machines Sabotaged . | . . . . . . . . . . . . . . . . . . . Overloaded Fab Kills . | . . . . . . . . . . . . . . . . . . . Hacking | -11 -10 -9 -8 -7 -7 -7 -7 -6 -6 -6 -6 -5 -4 -4 -4 -4 -4 -3 --------- Run | Yrd Mat Mat Mat Fac Low Low Dat Pro Fac Low Low Fac Fac Was Fac Upp Upp Res Machines Accessed 56 | . 4 4 12 10 1 . 4 1 7 . . 7 5 . 1 . . . Terminals 29 | . 2 3 8 6 . . . 1 3 . . 3 3 . . . . . Fabricators 5 | . . . . 2 . . . . 1 . . 1 1 . . . . . Repair Stations 5 | . 1 1 2 1 . . . . . . . . . . . . . . Recycling Units 7 | . 1 . 1 1 . . . . 2 . . 1 . . 1 . . . Scanalyzers 1 | . . . 1 . . . . . . . . . . . . . . . Garrison Access 4 | . . . . . . . . . 1 . . 2 1 . . . . . Total Hacks 157 | . 14 17 36 20 1 . 30 1 16 . . 13 7 . 2 . . . Successful 96 | . 10 10 17 9 1 . 30 1 10 . . 4 2 . 2 . . . Failed 61 | . 4 7 19 11 . . . . 6 . . 9 5 . . . . . Catastrophic 6 | . . 1 3 . . . . . . . . 1 1 . . . . . Database Lockouts . | . . . . . . . . . . . . . . . . . . . Manual 47 | . 10 10 11 3 . . 1 . 7 . . 4 1 . . . . . Terminals 82 | . 8 12 28 14 . . . 1 8 . . 6 5 . . . . . Fabricators 11 | . . . . 3 . . . . 4 . . 3 1 . . . . . Repair Stations 14 | . 3 5 5 1 . . . . . . . . . . . . . . Recycling Units 13 | . 3 . 2 2 . . . . 3 . . 1 . . 2 . . . Scanalyzers 1 | . . . 1 . . . . . . . . . . . . . . . Garrison Access 5 | . . . . . . . . . 1 . . 3 1 . . . . . Terminal Hacks 57 | . 4 4 8 5 1 . 30 1 2 . . 1 1 . . . . . Record 12 | . . . . . . . 11 1 . . . . . . . . . . Part Schematic 10 | . . . . . . . 10 . . . . . . . . . . . Robot Schematic 6 | . . . . . . . 6 . . . . . . . . . . . Robot Analysis 7 | . 4 1 2 . . . . . . . . . . . . . . . Prototype ID Bank 6 | . . . 2 . . . 3 . 1 . . . . . . . . . Open Door 1 | . . . . . 1 . . . . . . . . . . . . . Branch Access Points 2 | . . . 1 1 . . . . . . . . . . . . . . Alert Level 1 | . . 1 . . . . . . . . . . . . . . . . Unreport Threat 1 | . . 1 . . . . . . . . . . . . . . . . Locate Traps 1 | . . 1 . . . . . . . . . . . . . . . . Patrol Status 1 | . . . . . . . . . . . . . 1 . . . . . Hauler Manifests 1 | . . . 1 . . . . . . . . . . . . . . . Registered Components 2 | . . . 1 1 . . . . . . . . . . . . . . Zone Layout 6 | . . . 1 3 . . . . 1 . . 1 . . . . . . Fabricator Hacks 5 | . . . . 1 . . . . 3 . . . 1 . . . . . Network Status 3 | . . . . 1 . . . . 1 . . . 1 . . . . . Load Schematic 1 | . . . . . . . . . 1 . . . . . . . . . Build 1 | . . . . . . . . . 1 . . . . . . . . . Repair Station Hacks 8 | . 2 3 3 . . . . . . . . . . . . . . . Scan Component 5 | . 1 2 2 . . . . . . . . . . . . . . . Repair 3 | . 1 1 1 . . . . . . . . . . . . . . . Recycling Unit Hacks 10 | . 2 . 2 1 . . . . 2 . . 1 . . 2 . . . Report Inventory 7 | . 1 . 2 1 . . . . 1 . . 1 . . 1 . . . Retrieve Components 3 | . 1 . . . . . . . 1 . . . . . 1 . . . Scanalyzer 1 | . . . 1 . . . . . . . . . . . . . . . Retrieve Study 1 | . . . 1 . . . . . . . . . . . . . . . Garrison Access Hacks 1 | . . . . . . . . . . . . 1 . . . . . . Seal Access 1 | . . . . . . . . . . . . 1 . . . . . . Unauthorized Hacks 14 | . 2 3 3 2 . . . . 3 . . 1 . . . . . . Terminals 13 | . 2 3 3 2 . . . . 2 . . 1 . . . . . . Botnet 13 | . 2 3 3 2 . . . . 2 . . 1 . . . . . . Fabricators . | . . . . . . . . . . . . . . . . . . . Repair Stations . | . . . . . . . . . . . . . . . . . . . Recycling Units 1 | . . . . . . . . . 1 . . . . . . . . . Tunnel 1 | . . . . . . . . . 1 . . . . . . . . . Scanalyzers . | . . . . . . . . . . . . . . . . . . . Garrison Access . | . . . . . . . . . . . . . . . . . . . Data Cores Recovered 1 | . . . . . . . . . . . . . 1 . . . . . Used 1 | . . . . . . . . . . . . . 1 . . . . . Hacking Detections 38 | . 1 4 9 9 . . . . 5 . . 5 4 . 1 . . . Full Trace Events 8 | . . 1 3 1 . . . . 2 . . . 1 . . . . . Feedback Events 1 | . . . . . . . . . 1 . . . . . . . . . Corruption 1 | . . . . . . . . . 1 . . . . . . . . . Feedback Blocked . | . . . . . . . . . . . . . . . . . . . Robot Schematics Acquired 6 | . . . . . . . 6 . . . . . . . . . . . Robots Built . | . . . . . . . . . . . . . . . . . . . Authchips . | . . . . . . . . . . . . . . . . . . . Time . | . . . . . . . . . . . . . . . . . . . Total Robot Build Rating . | . . . . . . . . . . . . . . . . . . . Part Schematics Acquired 10 | . . . . . . . 10 . . . . . . . . . . . Parts Built 1 | . . . . . . . . . 1 . . . . . . . . . Authchips . | . . . . . . . . . . . . . . . . . . . Time 152 | . . . . . . . . . 152 . . . . . . . . . Total Part Build Rating 5 | . . . . . . . . . 5 . . . . . . . . . Part Studies Acquired 1 | . . . 1 . . . . . . . . . . . . . . . Parts Repaired 3 | . 1 1 1 . . . . . . . . . . . . . . . Time 90 | . 26 32 32 . . . . . . . . . . . . . . . Parts Recycled . | . . . . . . . . . . . . . . . . . . . Recycled Matter . | . . . . . . . . . . . . . . . . . . . Retrieved Matter . | . . . . . . . . . . . . . . . . . . . Retrieved Components 5 | . 3 . . . . . . . 1 . . . . . 1 . . . Parts Scanalyzed . | . . . . . . . . . . . . . . . . . . . Part Schematics Acquired . | . . . . . . . . . . . . . . . . . . . Parts Damaged . | . . . . . . . . . . . . . . . . . . . Bothacking | -11 -10 -9 -8 -7 -7 -7 -7 -6 -6 -6 -6 -5 -4 -4 -4 -4 -4 -3 ------------ Run | Yrd Mat Mat Mat Fac Low Low Dat Pro Fac Low Low Fac Fac Was Fac Upp Upp Res Used RIF Installer . | . . . . . . . . . . . . . . . . . . . Robots Hacked . | . . . . . . . . . . . . . . . . . . . Non-combat . | . . . . . . . . . . . . . . . . . . . Combat . | . . . . . . . . . . . . . . . . . . . Robot Hacks Applied . | . . . . . . . . . . . . . . . . . . . Relay Couplers Released 3 | . . . . . . . . . . . . . 3 . . . . . Machine Destruction 3 | . . . . . . . . . . . . . 3 . . . . . Fabnet Peak Effective % . | . . . . . . . . . . . . . . . . . . . Robots Rewired 4 | . . . . . 4 . . . . . . . . . . . . . Allies Hacked . | . . . . . . . . . . . . . . . . . . . Hacks Repelled . | . . . . . . . . . . . . . . . . . . . Allies | -11 -10 -9 -8 -7 -7 -7 -7 -6 -6 -6 -6 -5 -4 -4 -4 -4 -4 -3 -------- Run | Yrd Mat Mat Mat Fac Low Low Dat Pro Fac Low Low Fac Fac Was Fac Upp Upp Res Total Allies 5 | . . . . . 4 . . 1 . . . . . . . . . . Largest Group 4 | . . . . . 4 4 . 1 . . . . . . . . . . Highest-Rated Group 96 | . . . . . 64 64 . 96 . . . . . . . . . . Highest-Rated Ally 96 | . . . . . 16 16 . 96 . . . . . . . . . . Total Orders . | . . . . . . . . . . . . . . . . . . . Ally Attacks 35 | . . . . . . 32 . 3 . . . . . . . . . . Total Damage 449 | . . . . . . 344 . 105 . . . . . . . . . . Kills 4 | . . . . . . 4 . . . . . . . . . . . . Allies Corrupted . | . . . . . . . . . . . . . . . . . . . Allies Melted 1 | . . . . . . . . 1 . . . . . . . . . . Intel | -11 -10 -9 -8 -7 -7 -7 -7 -6 -6 -6 -6 -5 -4 -4 -4 -4 -4 -3 ------- Run | Yrd Mat Mat Mat Fac Low Low Dat Pro Fac Low Low Fac Fac Was Fac Upp Upp Res Active Infowar (turns) 11175 | . . 1177 1865 2439 . . . . 1310 625 130 1174 1619 100 28 150 25 533 Optics 4473 | . . . . . . . . . 210 625 130 1174 1619 . 7 150 25 533 Sensors 547 | . . . . . . . . . . . . . . . 21 112 25 389 Terrain 781 | . . . . . . . . . . . . . 781 . . . . . Traps 2444 | . . . . 763 . . . . 1310 . . 371 . . . . . . T.N.C. 1745 | . . . . 1745 . . . . . . . . . . . . . . Machine Analysis 5481 | . . 1177 1865 2439 . . . . . . . . . . . . . . Cloaking 100 | . . . . . . . . . . . . . . 100 . . . . Robot Analysis Total 7 | . 4 1 2 . . . . . . . . . . . . . . . Derelict Logs Recovered 7 | . . . . . . 2 . 2 . 1 . . . . . 2 . . Drone Launches 3 | . . . . . . . . . . . . . . . . . . 3 Drone Recoveries 2 | . . . . . . . . . . . . . . . . . . 2 Exploration | -11 -10 -9 -8 -7 -7 -7 -7 -6 -6 -6 -6 -5 -4 -4 -4 -4 -4 -3 ------------- Run | Yrd Mat Mat Mat Fac Low Low Dat Pro Fac Low Low Fac Fac Was Fac Upp Upp Res Turns Passed 15059 | 5 557 1177 1865 2444 565 1072 198 626 1588 827 130 1174 1715 188 220 150 25 533 Spaces Moved 9010 | 1 282 521 1058 1291 333 425 80 359 822 936 124 855 799 195 174 295 18 442 Core 1281 | . . . . 8 7 . . . . 394 93 . . 92 59 295 18 315 Treads 1258 | 1 93 70 . 11 245 425 80 122 38 . . 170 3 . . . . . Legs 1197 | . . . . . 70 . . 237 428 . . . 332 103 . . . 27 Wheels 4347 | . 189 451 1058 1272 . . . . 197 . 31 685 464 . . . . . Hover 927 | . . . . . 11 . . . 159 542 . . . . 115 . . 100 Flight . | . . . . . . . . . . . . . . . . . . . Fastest Speed 40 | 160 145 145 115 50 50 170 250 120 105 50 50 80 105 50 50 50 50 40 Average Speed 135 | 160 149 158 133 131 153 235 250 164 148 80 95 120 174 88 101 50 50 111 Slowest Speed 630 | 160 160 320 160 400 170 250 250 250 260 110 150 160 630 250 200 50 50 250 Overloaded Moves . | . . . . . . . . . . . . . . . . . . . Propulsion Burnouts . | . . . . . . . . . . . . . . . . . . . Robots Hopped . | . . . . . . . . . . . . . . . . . . . Potential Cave-ins . | . . . . . . . . . . . . . . . . . . . Cave-ins Triggered . | . . . . . . . . . . . . . . . . . . . Exploration Rate (%) 39 | 2 44 43 65 37 47 71 69 61 18 78 15 25 21 81 4 53 4 16 Regions Visited 18 Branch Regions 8 Pre-discovered Areas 4 | . . . . . . . 1 . 1 . . . . . . 2 . . Known Exits Taken 2 | . . . . 1 . . . . . . 1 . . . . . . . Unknown Exits Taken 14 | 1 1 1 1 . 1 1 1 1 1 1 . 1 . . 1 1 1 . Scrap Searched 12 | . . . . . 3 4 . 2 . 1 1 . . . . 1 . . Spaces Dug 12 | . 1 1 4 . . . . . 5 . . . 1 . . . . . Terrain Destroyed 242 | . 1 45 4 58 . . . . 54 5 . 5 69 . . . . 1 Melee . | . . . . . . . . . . . . . . . . . . . Projectile 92 | . 1 1 4 33 . . . . 25 5 . 5 17 . . . . 1 AOE 150 | . . 44 . 25 . . . . 29 . . . 52 . . . . . Terrain Rammed . | . . . . . . . . . . . . . . . . . . . Walls Destroyed . | . . . . . . . . . . . . . . . . . . . Machines Disabled . | . . . . . . . . . . . . . . . . . . . Actions | -11 -10 -9 -8 -7 -7 -7 -7 -6 -6 -6 -6 -5 -4 -4 -4 -4 -4 -3 --------- Run | Yrd Mat Mat Mat Fac Low Low Dat Pro Fac Low Low Fac Fac Was Fac Upp Upp Res Total 10956 | 4 371 729 1389 1804 377 458 79 380 1080 993 131 936 987 211 216 297 33 481 Wait 819 | . 39 90 174 259 . 2 . . 136 15 . 9 45 3 30 . 16 1 Move 8994 | . 282 520 1057 1290 332 424 79 358 821 935 123 854 799 194 173 294 17 442 Hop . | . . . . . . . . . . . . . . . . . . . Pick Up 147 | . 12 13 18 31 3 3 . 6 12 2 . 10 26 4 2 1 . 4 Fast Attach 58 | . 2 1 . 3 5 2 . 1 8 2 3 9 9 3 5 . . 5 Attach 60 | . . 4 5 12 4 3 . 1 9 2 1 4 10 3 . . . 2 Detach 12 | . . . . 3 . . . . 2 . 1 . 4 . 1 . . 1 Swap 132 | 2 7 22 19 31 1 2 . 2 11 3 . 12 20 . . . . . Drop 121 | 2 6 9 21 34 . . . 1 10 10 . 6 10 4 4 1 . 3 Fire 551 | . 23 70 95 141 6 22 . 11 71 11 3 32 64 . . . . 2 Melee . | . . . . . . . . . . . . . . . . . . . Ram 19 | . . . . . . . . . . 13 . . . . 1 . . 5 Kick 1 | . . . . . . . . . . . . . . . . . . 1 Crush . | . . . . . . . . . . . . . . . . . . . Escape Stasis 15 | . . . . . . . . . . . . . . . . . . 15 Rewire 27 | . . . . . 26 . . . . . . . . . . 1 . . Trap . | . . . . . . . . . . . . . . . . . . . Miscellaneous . | . . . . . . . . . . . . . . . . . . . Route ------- -11/Scrapyard -10/Materials (discovered 2 exits: *Mat / [*Min]) -9/Materials (discovered 2 exits: *Mat / [*Min]) -8/Materials (discovered 3 exits: *Fac / *Sto x2) -7/Factory (discovered 2 exits: *Low x2) -7/Lower Caves -7/Lower Caves -7/Data Miner -6/Proximity Caves -6/Factory (discovered 2 exits: Fac / [*Low]) -6/Lower Caves -6/Lower Caves -5/Factory (discovered 2 exits: *Fac / [*Upp]) -4/Factory -4/Waste -4/Factory -4/Upper Caves -4/Upper Caves -3/Research History --------- Turn | Location | Event 6 | -11/Scrapyard | Discovered new exit (range 0) 6 | -11/Scrapyard | Entered Materials 149 | -10/Materials | Repaired Lgt. Armor Plating 175 | -10/Materials | Discovered new exit (range 9) 300 | -10/Materials | Build established: Mutant 439 | -10/Materials | Discovered new exit (range 12) 563 | -10/Materials | Entered another Materials area 563 | -9/Materials | Evolved 2 slots: Propulsion x1, Utility x1 1041 | -9/Materials | Discovered new exit (range 12) 1314 | -9/Materials | Build established: Scavenger-Mutant 1368 | -9/Materials | Discovered new exit (range 8) 1579 | -9/Materials | Repaired Med. Armor Plating 1740 | -9/Materials | Entered another Materials area 1740 | -8/Materials | Evolved 2 slots: Utility x1, Weapon x1 2108 | -8/Materials | Build established: Scavenger-Gunner 2536 | -8/Materials | Repaired Med. Armor Plating 2675 | -8/Materials | Identified exit to Storage 3044 | -8/Materials | Build established: Gunner 3424 | -8/Materials | Discovered new exit (range 11) 3605 | -8/Materials | Entered Factory 3605 | -7/Factory | Evolved 2 slots: Utility x2 3764 | -7/Factory | Garrison activated, responded to threat 4277 | -7/Factory | Build established: Tank 4500 | -7/Factory | Cargo convoy interrupted 4540 | -7/Factory | Destroyed 8 combat bots 4811 | -7/Factory | Build established: Skirmisher 5275 | -7/Factory | Build established: Gunner 5276 | -7/Factory | Identified exit to Lower Caves 5968 | -7/Factory | Core integrity fell below 50% 6022 | -7/Factory | Build established: Tank 6044 | -7/Factory | Released all parts (8) 6049 | -7/Factory | Entered Lower Caves 6061 | -7/Lower Caves | Encountered a Warlord checkpoint 6074 | -7/Lower Caves | Lost 3 parts (1p1n1w) 6142 | -7/Lower Caves | Attacked by a delusional Derelict stockpiling Unaware 6452 | -7/Lower Caves | Discovered new exit (range 13) 6472 | -7/Lower Caves | Build established: Scavenger-Mutant 6614 | -7/Lower Caves | Entered another Lower Caves area 6614 | -7/Lower Caves | Accompanied by 4 allies 6708 | -7/Lower Caves | Learned Factory emergency access door positions 6798 | -7/Lower Caves | Build established: Scavenger-Tank 7571 | -7/Lower Caves | Spotted B-75 Beast 7654 | -7/Lower Caves | Discovered new exit (range 14) 7669 | -7/Lower Caves | Learned Factory trap positions 7686 | -7/Lower Caves | Entered Data Miner 7686 | -7/Data Miner | Discovered new exit (range 6) 7734 | -7/Data Miner | Met Data Miner 7784 | -7/Data Miner | Learned location of Section 7 (-2) 7784 | -7/Data Miner | Acquired the access code to Warlord's prototype stash 7824 | -7/Data Miner | Received God Mode back door access code from Data Miner 7884 | -7/Data Miner | Entered Proximity Caves 7904 | -6/Proximity Caves | Learned Factory garrison access intel 8059 | -6/Proximity Caves | Spotted B-75 Beast 8061 | -6/Proximity Caves | Escorted by Enhanced Grunt 8194 | -6/Proximity Caves | Core integrity fell below 20% 8479 | -6/Proximity Caves | Learned location of 1 exit from Factory 8481 | -6/Proximity Caves | Discovered new exit (range 15) 8510 | -6/Proximity Caves | Entered Factory 8510 | -6/Factory | Evolved 2 slots: Utility x2 8511 | -6/Factory | Identified exit to Factory 8512 | -6/Factory | Loaded intel: 95 trap records 8514 | -6/Factory | Loaded intel: 4 garrison access locations 8550 | -6/Factory | Build established: Derelict-Tank 8873 | -6/Factory | Lost 8 parts (3n4u1w) 9147 | -6/Factory | Incoming investigation squad redirected 9258 | -6/Factory | Build established: Scavenger-Mutant 9273 | -6/Factory | Fabricated Lgt. Regenerative Plating (x1) 9677 | -6/Factory | Lost 3 parts (2n1u) 9986 | -6/Factory | Discovered new exit (range 15) 10098 | -6/Factory | Entered Lower Caves 10218 | -6/Lower Caves | Lost 3 parts (2u1w) 10458 | -6/Lower Caves | Build established: Mutant 10468 | -6/Lower Caves | Attracted the attention of an 0b10 outpost 10506 | -6/Lower Caves | Attracted the attention of an 0b10 checkpoint 10516 | -6/Lower Caves | Spotted B-75 Beast 10578 | -6/Lower Caves | Lost 3 parts (1p1n1u) 10600 | -6/Lower Caves | Core integrity fell below 50% 10631 | -6/Lower Caves | Learned Factory emergency access door positions 10729 | -6/Lower Caves | Core integrity fell below 20% 10869 | -6/Lower Caves | Attacked by a delusional Derelict stockpiling parts 10923 | -6/Lower Caves | Discovered new exit (range 5) 10925 | -6/Lower Caves | Entered another Lower Caves area 11041 | -6/Lower Caves | Discovered exit to Factory (range 17) 11055 | -6/Lower Caves | Entered Factory 11055 | -5/Factory | Evolved 2 slots: Propulsion x1, Utility x1 11362 | -5/Factory | Build established: Gunner 11640 | -5/Factory | Spotted B-75 Beast 12029 | -5/Factory | Discovered new exit (range 12) 12218 | -5/Factory | Discovered new exit (range 3) 12229 | -5/Factory | Entered another Factory area 12229 | -4/Factory | Evolved 2 slots: Power x1, Utility x1 12494 | -4/Factory | Lost 3 parts (2n1u) 12782 | -4/Factory | Incoming investigation squad redirected 12865 | -4/Factory | Build established: Scavenger-Gunner 13169 | -4/Factory | Lost 4 parts (2u2w) 13326 | -4/Factory | Garrison activated, responded to threat 13372 | -4/Factory | Incoming assault squad redirected 13382 | -4/Factory | Incoming assault squad redirected 13463 | -4/Factory | Build established: Gunner 13479 | -4/Factory | First assault squad dispatched 13808 | -4/Factory | Spotted B-86 Titan 13867 | -4/Factory | Core integrity fell below 50% 13903 | -4/Factory | Lost 9 parts (1p3n4u1w) 13933 | -4/Factory | System corruption reached 10% 13944 | -4/Factory | Sucked down chute 13944 | -4/Factory | Entered Waste 14040 | -4/Waste | Spotted C-40 Crusher 14065 | -4/Waste | Spotted C-40 Crusher 14077 | -4/Waste | Crushed by Compactor (1 part destroyed, 2 dropped) 14080 | -4/Waste | Crushed by Compactor (1 part destroyed, 2 dropped) 14083 | -4/Waste | Crushed by Compactor (1 part destroyed, 1 dropped) 14083 | -4/Waste | Crushed by Compactor (1 part destroyed, 1 dropped) 14084 | -4/Waste | Core integrity fell below 20% 14095 | -4/Waste | Spotted C-40 Crusher 14095 | -4/Waste | Spotted C-40 Crusher 14102 | -4/Waste | Spotted C-40 Crusher 14114 | -4/Waste | Lost 4 parts (1p1n2u) 14122 | -4/Waste | Discovered new exit (range 11) 14132 | -4/Waste | Entered Factory 14151 | -4/Factory | Build established: Mutant 14340 | -4/Factory | Discovered new exit (range 16) 14340 | -4/Factory | Spotted B-86 Titan 14352 | -4/Factory | Entered Upper Caves 14353 | -4/Upper Caves | Encountered a Warlord checkpoint 14356 | -4/Upper Caves | Learned location of Quarantine (-3) 14440 | -4/Upper Caves | Learned location of Armory (-3) 14497 | -4/Upper Caves | Discovered new exit (range 11) 14502 | -4/Upper Caves | Entered another Upper Caves area 14525 | -4/Upper Caves | Discovered new exit (range 5) 14527 | -4/Upper Caves | Entered Research 14527 | -3/Research | Evolved 2 slots: Utility x2 14984 | -3/Research | Core integrity fell below 50% 15039 | -3/Research | Core integrity fell below 20% 15060 | -3/Research | Destroyed by P-80 Master with Gamma Rifle Last Messages --------------- 14997_ Mini Drone retrieved by Mni. Drone Bay (repair cost: 2). 15012_ System corrupted: Energy discharge (-28). 15014_ P-80 Master resets S-43 Plague, system corruption cleaned. 15016_ Door malfunctions. 15018_ U-05 Engineer repairs door. 15022_ Kicked U-05 Engineer. 15023_ Imp. Thunder Leg destroyed. 15027_ P-80 Master resets S-43 Plague, system corruption cleaned. 15030_ Mni. Drone Bay destroyed. 15030_ Penetrated by Slug. 15030_ Slug penetrates Wall. 15034_ U-05 Engineer destroyed. 15045_ System corrupted: Graphene Brace rejected. 15045_ Acquired Graphene Brace. 15053_ Acquired Imp. Core Shielding. 15056_ Slammed into S-43 Plague. Map ----- +----------------------------------------------------+ | ?????????????????????????????????????????????? | | ?????????????????????????????????????????????? | | ?????????????????????????????????????????????? | | ?????????????????????????????????????????????? | | ?????????????????????? ??????????????????????? | | ?????????????????????? ??????????????????????? | | ?????????????????????? ??????????????????????? | | ?????????????????????? +?????????????????????? | | ?????????????????????? #?????????????????????? | | ???????????????????### ##????????????????????? | | ???????????????????# #????????????????????? | | ???????????????????# #????????????????????? | | ???????????????????# #????????????????????? | | ???????????????????+ +????????????????????? | | ???????????????????# #????????????????????? | | ???????????????????# #????????????????????? | | ???????????????????# #????????????????????? | | ???????????????????# #????????????????????? | | ??????????????????## #????????????????????? | | ??????????????????? #????????????????????? | | ??????????????????? #????????????????????? | | ???????????????????# #???#????????????????? | | ??????????########## #?? #????????????????? | | ??????????# # ### ####?????????????? | | ??????????# # ### ##????????? | | ??????????# """ # @ u #??????? | | ??????????# """" # s t t "?# | | ??????????# """" s kk ###### # | | ??????????# """ #p ###+####???????????# | | ??????????# #pp #??????????????????# | | ??????????# # #??????????????????# | | ??????????# # #??????????????????# | | ??????????########## #??????????????????# | | ???????????????????# k#??????????????????# | | ???????????????????# #??????????????????? | | ??????????????????## #????????????????????? | | ??????????????????# ##???????????????????? | | ??????????????????#T ## ???????############ | | ?????????########### ## ?"" + | | ?????????# + ## ??????######## ### | | ?????????# = # ##/ ????????????# #?? | | ?????????# # ## ????????####/### | | ?????????#" ?# #?? ????????#= | | ?????????#"" ?# #??? ???????#% | | ?????????#"" * ??# g######+######## | | ?????????#"" ??# # | | ?????????#"" ""???+ # | | ?????????#"T ""???# # ! | | ?????????#"" "????# / | | ?????????#"" "????############### # | +----------------------------------------------------+ Best States ------------- Heat Dissipation 46 Energy Generation 31 Energy Capacity 310 Matter Stores 300 Matter Capacity 300 Sight Range 22 Robot Scan Range 18 Terrain Scan Range 24 Terrain Scan Density 210 Cloak Strength 3 Armor Coverage 450 Resistance: KI 20 Resistance: TH 20 Core Shielding 30 Utility Shielding 66 Weapon Cycling 20 Evasion (%) 70 Targeting Accuracy 16 Target Analysis 9 Core Analysis 6 Recoil Reduction 5 Matter Filtering 30 Kinecelleration 30 Item Schematics ----------------- Combat Drone Bay | -7/Data Miner | Free Lgt. Regenerative Plating | -7/Data Miner | Free Cld. Cesium-ion Thruster | -7/Data Miner | Free Thermal Defense Suite | -7/Data Miner | Free Imp. Lightning Gun | -7/Data Miner | Free Antigrav System | -7/Data Miner | Free Imp. Dynamic Insulation System | -7/Data Miner | Free Hvy. Shock Bomb Launcher | -7/Data Miner | Free Lgt. Angular Momentum Engine | -7/Data Miner | Free Impulse Thruster | -7/Data Miner | Free Robot Schematics ------------------ X-62 Marksman | -7/Data Miner | Free A-15 Conveyor | -7/Data Miner | Free H-66 Slayer | -7/Data Miner | Free S-27 Virus | -7/Data Miner | Free R-10 Processor | -7/Data Miner | Free B-48 Gladiator | -7/Data Miner | Free Fabricated ------------ Lgt. Regenerative Plating | x1 | -6/Factory Repaired ---------- Lgt. Armor Plating | 74% | -10/Materials Med. Armor Plating | 23% | -9/Materials Med. Armor Plating | 58% | -8/Materials Studied --------- Lgt. Nuclear Core | -8/Materials | Hacked Alien Tech Used ----------------- None Achievements -------------- Live, Flee, And Rebuild Streaker Challenges ------------ None Game ------ Seed TerrorMicrowarpMultitool Manual? 0 Play Time 03:44:01 Cumulative 104.9 hours Start 2025.11.30 @ 17:37:09 End 2025.12.01 @ 15:35:49 Sessions 5 Manual Loads 0 Difficulty Rogue Special Mode None Game No. 116 Rogue 86 Adventurer 30 Explorer 0 Win Type - Total 1 Types 1/0/0/0/0/0/0/0/0/0 Lore% 51 Gallery% 44 Achievement% 33 Wizard Run 0 Options --------- Layout 2 ASCII 0 Keyboard 1 Movement Arrows Keybinds 0 Fullscreen 1 Font 24/Terminus Map View 50x44 Zoom Use 0% Tactical HUD 1 Map Filters NONE Filters NONE Steam 1 RUN: 549a97b3-cf3c-4db1-95e3-b158b3da4990